fUST/lending_fUST_20240525
["ID","MTS","AMOUNT","RATE_DAILY","PERIOD"]
[327874950,1716571843152,-640.18,0.00026027,7]
[327874951,1716571843161,-207.66220428,0.00026027,7]
[327874952,1716571843170,-500.0,0.00026027,7]
[327874953,1716571843179,-3375.84,0.00026027,7]
[327874954,1716571843188,-2387.63,0.00026027,7]
[327874955,1716571843197,-500.0,0.00026027,7]
[327874956,1716571843206,-500.0,0.00026027,7]
[327874957,1716571843215,-500.0,0.00026027,7]
[327874958,1716571843226,-500.0,0.00026027,7]
[327874960,1716571843238,-500.0,0.00026027,7]
[327874962,1716571843248,-462.44,0.00026027,7]
[327874965,1716571843262,-500.0,0.00026027,7]
[327874967,1716571843276,-551.39,0.00026027,7]
[327874969,1716571843289,-730.03,0.00026027,7]
[327874970,1716571843303,-500.0,0.00026027,7]
[327874971,1716571843316,-500.0,0.00026027,7]
[327874972,1716571843328,-631.59,0.00026027,7]
[327874973,1716571843339,-500.0,0.00026027,7]
[327874974,1716571843349,-1314.92,0.00026027,7]
[327874975,1716571843361,-531.56,0.00026027,7]
[327874976,1716571843372,-500.0,0.00026027,7]
[327874977,1716571843384,-632.21,0.00026027,7]
[327874978,1716571843396,-527.55,0.00026027,7]
[327874979,1716571843407,-912.8,0.00026027,7]
[327874980,1716571843419,-1648.32,0.00026027,7]
[327874981,1716571843431,-500.0,0.00026027,7]
[327874982,1716571843442,-5297.89,0.00026027,7]
[327874983,1716571843454,-5266.04,0.00026027,7]
[327874984,1716571843469,-690.86,0.00026027,7]
[327874985,1716571843484,-500.0,0.00026027,7]
[327874986,1716571843496,-380.0,0.00026027,7]
[327874987,1716571843508,-1601.15,0.00026027,7]
[327874988,1716571843520,-535.28,0.00026027,7]
[327874989,1716571843531,-500.0,0.00026027,7]
[327874990,1716571843543,-204.6274004,0.00026027,2]
[327874991,1716571843554,-204.6274004,0.00026027,2]
[327874992,1716571843566,-204.6274004,0.00026027,2]
[327874993,1716571843578,-204.6274004,0.00026027,2]
[327874994,1716571843590,-155.1373267,0.00026027,2]
[327874995,1716571843601,-361.0,0.00026098,2]
[327874996,1716571843612,-9346.19,0.00026108,17]
[327874997,1716571843623,-150.0,0.0002611,2]
[327874998,1716571843633,-496.0,0.0002611,2]
[327874999,1716571843644,-186.39835571,0.00026219,2]
[327875000,1716571843656,-337.51978902,0.00026219,2]
[327875001,1716571843666,-9346.19,0.000263,18]
[327875002,1716571843678,-500.0,0.00026301,8]
[327875003,1716571843690,-172.2452851,0.00026301,8]
[327875004,1716571843701,-226.05406954,0.00026301,8]
[327875005,1716571843713,-500.0,0.00026301,8]
[327875006,1716571843726,-500.0,0.00026301,8]
[327875007,1716571843740,-501.76,0.00026301,8]
[327875008,1716571843754,-500.0,0.00026301,8]
[327875009,1716571843767,-500.0,0.00026301,8]
[327875010,1716571843779,-615.59,0.00026301,8]
[327875011,1716571843790,-508.77,0.00026301,8]
[327875012,1716571843802,-500.0,0.00026301,8]
[327875013,1716571843813,-500.0,0.00026301,8]
[327875014,1716571843825,-500.0,0.00026301,8]
[327875015,1716571843838,-650.17,0.00026301,8]
[327875016,1716571843851,-508.44,0.00026301,8]
[327875017,1716571843864,-640.18,0.00026301,8]
[327875018,1716571843877,-500.0,0.00026301,8]
[327875019,1716571843888,-3375.84,0.00026301,8]
[327875020,1716571843902,-2387.63,0.00026301,8]
[327875021,1716571843914,-500.0,0.00026301,8]
[327875022,1716571843925,-500.0,0.00026301,8]
[327875023,1716571843936,-500.0,0.00026301,8]
[327875024,1716571843947,-500.0,0.00026301,8]
[327875025,1716571843957,-500.0,0.00026301,8]
[327875026,1716571843970,-500.0,0.00026301,8]
[327875027,1716571843987,-360.12191789,0.00026301,8]
[327875031,1716571844482,-500.0,0.00024657,2]
[327875033,1716571844494,-500.0,0.00024657,2]
[327875034,1716571844506,-500.0,0.00024657,2]
[327875035,1716571844517,-827.84,0.00024657,2]
[327875036,1716571844529,-500.0,0.00024657,2]
[327875037,1716571844540,-500.0,0.00024931,3]
[327875039,1716571844553,-500.0,0.00024931,3]
[327875041,1716571844565,-500.0,0.00024931,3]
[327875044,1716571844578,-827.84,0.00024931,3]
[327875046,1716571844591,-13369.62058427,0.00025,2]
[327875048,1716571844603,-500.0,0.00025205,4]
[327875050,1716571844617,-500.0,0.00025205,4]
[327875052,1716571844629,-500.0,0.00025205,4]
[327875055,1716571844641,-500.0,0.00025479,5]
[327875057,1716571844653,-500.0,0.00025753,6]
[327875059,1716571844667,-33946.61,0.00026017,3]
[327875061,1716571844680,-242.01706034,0.00026027,7]
[327875063,1716571844691,-191.26808211,0.00026301,8]
[327875065,1716571844702,-730.03,0.00026301,8]
[327875067,1716571844714,-500.0,0.00026301,8]
[327875070,1716571844726,-500.0,0.00026301,8]
[327875072,1716571844741,-631.59,0.00026301,8]
[327875074,1716571844753,-500.0,0.00026301,8]
[327875076,1716571844766,-1314.92,0.00026301,8]
[327875078,1716571844777,-531.56,0.00026301,8]
[327875080,1716571844787,-500.0,0.00026301,8]
[327875082,1716571844796,-632.21,0.00026301,8]
[327875084,1716571844807,-527.55,0.00026301,8]
[327875086,1716571844817,-912.8,0.00026301,8]
[327875088,1716571844828,-1648.32,0.00026301,8]
[327875090,1716571844838,-500.0,0.00026301,8]
[327875092,1716571844848,-5297.89,0.00026301,8]
[327875094,1716571844858,-2609.73447348,0.00026301,8]
[327875127,1716571845537,-2656.30552652,0.00026301,8]
[327875128,1716571845547,-690.86,0.00026301,8]
[327875129,1716571845556,-396.91,0.00026301,8]
[327875130,1716571845565,-1601.15,0.00026301,8]
[327875131,1716571845574,-535.28,0.00026301,8]
[327875132,1716571845583,-500.0,0.00026301,8]
[327875133,1716571845593,-172.4475907,0.00026301,2]
[327875134,1716571845603,-419.099999,0.000264,2]
[327875135,1716571845612,-361.0,0.00026466,2]
[327875136,1716571845622,-151.0,0.0002653,5]
[327875137,1716571845631,-417.57091557,0.00026557,2]
[327875138,1716571845641,-4226.56801723,0.00026557,2]
[327875139,1716571845650,-9346.19,0.00026574,19]
[327875141,1716571845660,-595.40005476,0.00026575,9]
[327875142,1716571845669,-500.0,0.00026575,9]
[327875144,1716571845678,-500.0,0.00026575,9]
[327875146,1716571845687,-501.76,0.00026575,9]
[327875147,1716571845697,-500.0,0.00026575,9]
[327875149,1716571845706,-500.0,0.00026575,9]
[327875150,1716571845715,-615.59,0.00026575,9]
[327875151,1716571845725,-508.77,0.00026575,9]
[327875152,1716571845735,-500.0,0.00026575,9]
[327875153,1716571845744,-500.0,0.00026575,9]
[327875154,1716571845753,-500.0,0.00026575,9]
[327875155,1716571845763,-650.17,0.00026575,9]
[327875156,1716571845772,-508.44,0.00026575,9]
[327875157,1716571845781,-640.18,0.00026575,9]
[327875158,1716571845790,-500.0,0.00026575,9]
[327875159,1716571845799,-2387.63,0.00026575,9]
[327875160,1716571845808,-500.0,0.00026575,9]
[327875161,1716571845817,-500.0,0.00026575,9]
[327875162,1716571845827,-500.0,0.00026575,9]
[327875163,1716571845836,-500.0,0.00026575,9]
[327875164,1716571845846,-500.0,0.00026575,9]
[327875165,1716571845855,-551.39,0.00026575,9]
[327875166,1716571845865,-730.03,0.00026575,9]
[327875167,1716571845875,-356.71097048,0.00026575,9]
[327875168,1716571845884,-500.0,0.00026575,9]
[327875169,1716571845894,-631.59,0.00026575,9]
[327875170,1716571845903,-500.0,0.00026575,9]
[327875171,1716571845913,-1314.92,0.00026575,9]
[327875172,1716571845923,-531.56,0.00026575,9]
[327875173,1716571845932,-350.13364585,0.00026575,9]
[327875174,1716571845942,-632.21,0.00026575,9]
[327875175,1716571845952,-527.55,0.00026575,9]
[327875176,1716571845962,-247.37359259,0.00026575,9]
[327875182,1716571846084,-665.42640741,0.00026575,9]
[327875183,1716571846095,-306.57359259,0.00026575,9]
[327875184,1716571846147,-500.0,0.00024931,3]
[327875185,1716571846156,-827.84,0.00025205,4]
[327875186,1716571846166,-500.0,0.00025205,4]
[327875188,1716571846176,-827.84,0.00025479,5]
[327875189,1716571846185,-827.84,0.00025753,6]
[327875190,1716571846195,-686.76530216,0.00026575,9]
[327875191,1716571846208,-365.000015,0.00026575,9]
[327875192,1716571846220,-289.98109025,0.00026575,9]
[327875193,1716571846229,-500.0,0.00026575,9]
[327875194,1716571846240,-5297.89,0.00026575,9]
[327875195,1716571846249,-5266.04,0.00026575,9]
[327875196,1716571846258,-690.86,0.00026575,9]
[327875197,1716571846267,-1601.15,0.00026575,9]
[327875198,1716571846275,-535.28,0.00026575,9]
[327875199,1716571846284,-500.0,0.00026575,9]
[327875200,1716571846294,-291.6248309,0.00026575,2]
[327875201,1716571846303,-582.2722898,0.00026603,2]
[327875203,1716571846312,-583.123622,0.0002667,2]
[327875205,1716571846322,-70.18618362,0.00026848,20]
[327875228,1716571847493,-283.74874537,0.00024657,2]
[327875229,1716571847556,-216.25125463,0.00024657,2]
[327875230,1716571847566,-500.0,0.00024931,3]
[327875231,1716571847577,-500.0,0.00025205,4]
[327875232,1716571847588,-827.84,0.00026027,7]
[327875233,1716571847597,-827.84,0.00026301,8]
[327875234,1716571847607,-827.84,0.00026575,9]
[327875235,1716571847616,-4725.42155395,0.00026848,20]
[327875236,1716571847628,-4550.58226243,0.00026848,20]
[327875237,1716571847639,-276.29905251,0.00026849,10]
[327875238,1716571847648,-500.0,0.00026849,10]
[327875239,1716571847658,-501.76,0.00026849,10]
[327875240,1716571847667,-500.0,0.00026849,10]
[327875241,1716571847676,-500.0,0.00026849,10]
[327875242,1716571847686,-346.59470801,0.00026849,10]
[327875243,1716571969171,943.36429939,0.00015,2]
[327875264,1716572041259,154.82968734,9.999e-05,2]
[327875265,1716572041542,299.64243626,0.00015,2]
[327875266,1716572041599,3633.2531206,0.00015,2]
[327875267,1716572041953,365.1890674,0.00015,2]
[327875269,1716572046759,3375.14983584,0.00015,2]
[327875270,1716572055599,3650.49932362,0.00015,2]
[327875271,1716572060758,3375.14983584,0.00015,2]
[327875272,1716572061409,299.64243626,0.00015,2]
[327875273,1716572061955,365.1890674,0.00015,2]
[327875275,1716572078754,2544.62714063,0.00015,2]
[327875276,1716572079488,299.64243626,0.00015,2]
[327875277,1716572079968,338.96728597,0.00015,2]
[327875293,1716572319548,150.83408251,0.00024048,30]
[327875294,1716572595814,921.76314443,0.00014,2]
[327875295,1716572671420,154.82968734,0.00014,2]
[327875296,1716572687396,154.9690062,0.00014,2]
[327875297,1716572742167,-572.92018077,0.00017011,2]
[327875298,1716572747349,154.82968734,9.999e-05,2]
[327875300,1716572832122,-181.08892415,0.000163,2]
[327875301,1716572834128,-175.6616625,0.000163,2]
[327875302,1716572847098,-13692.45251213,0.000163,2]
[327875303,1716572947123,-1033.46752317,0.00016202,2]
[327875304,1716572947156,-10436.91051711,0.00016301,2]
[327875305,1716572947187,-158.5114128,0.00016302,2]
[327875306,1716572947209,-2680.78177916,0.00016302,2]
[327875307,1716572947235,-21271.99787557,0.00016303,2]
[327875308,1716572947259,-24900.0,0.00016304,2]
[327875309,1716572947284,-920.10494263,0.00017015,2]
[327875310,1716572947309,-388.620509,0.0001705,2]
[327875311,1716572947333,-699.579346,0.00017242,2]
[327875312,1716572947360,-362.83054871,0.00017911,2]
[327875313,1716572947387,-38808.70006646,0.00017911,2]
[327875314,1716572947414,-899.3537781,0.00017915,2]
[327875315,1716572947439,-896.31216814,0.00018,2]
[327875316,1716572947465,-1046.4253814,0.00018251,2]
[327875317,1716572947490,-154.87609912,0.00018355,2]
[327875318,1716572947512,-11889.1132145,0.00018818,2]
[327875319,1716572947536,-691.22041844,0.000189,2]
[327875320,1716572948494,-425.87167165,0.00019178,2]
[327875321,1716572948525,-500.0,0.00019178,2]
[327875322,1716572948558,-500.0,0.00019178,2]
[327875323,1716572948589,-500.0,0.00019178,2]
[327875324,1716572948621,-304.0775622,0.00019178,2]
[327875325,1716572948648,-182.5164307,0.00019178,2]
[327875326,1716572948672,-166.891987,0.00019178,2]
[327875327,1716572948695,-170.365438,0.00019178,2]
[327875328,1716572948717,-157.45114224,0.00019501,2]
[327875329,1716572948743,-273.72171019,0.00019502,2]
[327875330,1716572948768,-1856.66914601,0.00019899,2]
[327875410,1716573034017,-181.0889242,0.00019543,2]
[327875411,1716573034027,-269.35848717,0.00019898,2]
[327875412,1716573034037,-1419.03754411,0.00019899,2]
[327875413,1716573034049,-3001.17694816,0.00019899,2]
[327875414,1716573034061,-1671.53030217,0.00019899,2]
[327875415,1716573034070,-155.0,0.00019999,2]
[327875416,1716573034079,-213.91429275,0.00019999,2]
[327875417,1716573034088,-22859.27879206,0.0002,2]
[327875418,1716573034098,-264.40789058,0.0002,2]
[327875419,1716573034107,-360.11654432,0.00020904,2]
[327875420,1716573034116,-395.90369838,0.00020905,2]
[327875421,1716573034126,-1884.25402905,0.00020905,2]
[327875422,1716573034135,-176.1920796,0.00020905,2]
[327875423,1716573034145,-155.08326852,0.00020905,2]
[327875424,1716573034155,-419.55068392,0.00020906,2]
[327875425,1716573034164,-409.72319712,0.00020906,2]
[327875426,1716573034174,-187.5525597,0.00020906,2]
[327875427,1716573034183,-5043.86586955,0.00020906,2]
[327875428,1716573034192,-333.28253777,0.00020906,2]
[327875429,1716573034202,-1691.07930366,0.00020906,2]
[327875430,1716573034212,-400.0,0.00020906,2]
[327875431,1716573034221,-496.37627288,0.00020906,2]
[327875432,1716573034231,-320.01286512,0.00020906,2]
[327875433,1716573034240,-155.04031048,0.00020906,2]
[327875434,1716573034250,-154.93802479,0.00020906,2]
[327875435,1716573034259,-155.16518711,0.00020906,2]
[327875436,1716573034268,-154.98450155,0.00020906,2]
[327875437,1716573034277,-157.09016641,0.00020906,2]
[327875438,1716573034287,-8655.63816738,0.00020906,2]
[327875439,1716573034307,-9563.3328996,0.00020908,2]
[327875440,1716573034317,-32467.6541446,0.00020908,2]
[327875464,1716573040048,-2297.44440588,0.00020908,2]
[327875466,1716573040059,-1399.01599342,0.00020909,2]
[327875468,1716573040072,-5627.02907201,0.00020909,2]
[327875470,1716573040082,-273.93598036,0.0002091,2]
[327875472,1716573040092,-2402.35904651,0.0002091,2]
[327875474,1716573040102,-312.281262,0.0002091,2]
[327875517,1716573040521,-187.718738,0.0002091,2]
[327875519,1716573040531,-489.31850481,0.0002091,2]
[327875521,1716573040541,-10512.91470053,0.00020911,2]
[327875523,1716573040551,-1853.80904924,0.00020911,2]
[327875525,1716573040561,-2381.16442622,0.00020913,2]
[327875527,1716573040571,-604.85735798,0.00021,2]
[327875529,1716573040581,-2994.74073635,0.00021,2]
[327875531,1716573040591,-167.31692,0.00021918,2]
[327875533,1716573040601,-708.7321981,0.00022,7]
[327875535,1716573040611,-1033.46752311,0.00022302,2]
[327875537,1716573040620,-167.31692,0.00022559,2]
[327875539,1716573040630,-167.31692,0.000232,2]
[327875541,1716573040642,-151.0,0.00023694,5]
[327875543,1716573040653,-167.31692,0.00023841,2]
[327875545,1716573040663,-691.22041844,0.000239,2]
[327875547,1716573040673,-1796.42279926,0.00023948,2]
[327875549,1716573040684,-3980.75777852,0.00024048,2]
[327875551,1716573040694,-12336.93721922,0.00024048,2]
[327875553,1716573040704,-151.0,0.00024256,5]
[327875555,1716573040714,-642.336095,0.00024384,2]
[327875557,1716573040724,-169.968212,0.00024384,2]
[327875559,1716573040735,-167.31692,0.00024482,2]
[327875561,1716573040745,-8973.80752521,0.00024557,3]
[327875563,1716573040755,-172.89503222,0.00024657,2]
[327875565,1716573040764,-500.0,0.00024657,2]
[327875567,1716573040774,-500.0,0.00024657,2]
[327875569,1716573040784,-500.0,0.00024657,2]
[327875571,1716573040793,-178.72,0.00024657,2]
[327875573,1716573040803,-500.0,0.00024657,2]
[327875575,1716573040813,-500.0,0.00024657,2]
[327875577,1716573040824,-198.21,0.00024657,2]
[327875579,1716573040835,-191.51,0.00024657,2]
[327875581,1716573040845,-500.0,0.00024657,2]
[327875583,1716573040855,-487.94829849,0.00024657,2]
[327875585,1716573040864,-619.7,0.00024657,2]
[327875587,1716573040874,-500.0,0.00024657,2]
[327875589,1716573040884,-500.0,0.00024657,2]
[327875591,1716573040893,-500.0,0.00024657,2]
[327875593,1716573040903,-500.0,0.00024657,2]
[327875595,1716573040912,-500.0,0.00024657,2]
[327875597,1716573040922,-500.0,0.00024657,2]
[327875599,1716573040931,-500.0,0.00024657,2]
[327875601,1716573040941,-500.0,0.00024657,2]
[327875603,1716573040950,-500.0,0.00024657,2]
[327875605,1716573040960,-500.0,0.00024657,2]
[327875607,1716573040969,-500.0,0.00024657,2]
[327875609,1716573040979,-500.0,0.00024657,2]
[327875611,1716573040988,-500.0,0.00024657,2]
[327875613,1716573040998,-500.0,0.00024657,2]
[327875615,1716573041007,-500.0,0.00024657,2]
[327875617,1716573041017,-500.0,0.00024657,2]
[327875619,1716573041026,-500.0,0.00024657,2]
[327875621,1716573041036,-516.27604082,0.00024657,2]
[327875624,1716573041046,-500.0,0.00024657,2]
[327875626,1716573041055,-500.0,0.00024657,2]
[327875628,1716573041064,-500.0,0.00024657,2]
[327875630,1716573041074,-221.19,0.00024657,2]
[327875632,1716573041083,-500.0,0.00024657,2]
[327875634,1716573041092,-500.0,0.00024657,2]
[327875636,1716573041102,-597.87,0.00024657,2]
[327875638,1716573041111,-500.0,0.00024657,2]
[327875640,1716573041120,-500.0,0.00024657,2]
[327875642,1716573041130,-754.5,0.00024657,2]
[327875644,1716573041140,-500.0,0.00024657,2]
[327875646,1716573041149,-500.0,0.00024657,2]
[327875648,1716573041159,-500.0,0.00024657,2]
[327875650,1716573041168,-714.32,0.00024657,2]
[327875652,1716573041178,-250.0,0.00024657,2]
[327875654,1716573041187,-500.0,0.00024657,2]
[327875656,1716573041197,-500.0,0.00024657,2]
[327875658,1716573041206,-500.0,0.00024657,2]
[327875660,1716573041216,-500.0,0.00024657,2]
[327875662,1716573041225,-563.99373487,0.00024657,2]
[327875664,1716573041235,-500.0,0.00024657,2]
[327875666,1716573041244,-500.0,0.00024657,2]
[327875668,1716573041253,-500.0,0.00024657,2]
[327875670,1716573041262,-675.81,0.00024657,2]
[327875672,1716573041271,-500.0,0.00024657,2]
[327875674,1716573041281,-500.0,0.00024657,2]
[327875676,1716573041290,-500.0,0.00024657,2]
[327875678,1716573041300,-500.0,0.00024657,2]
[327875680,1716573041310,-500.0,0.00024657,2]
[327875681,1716573041319,-500.0,0.00024657,2]
[327875683,1716573041328,-500.0,0.00024657,2]
[327875685,1716573041338,-500.0,0.00024657,2]
[327875687,1716573041348,-845.77,0.00024657,2]
[327875690,1716573041357,-500.0,0.00024657,2]
[327875692,1716573041367,-500.0,0.00024657,2]
[327875693,1716573041376,-500.0,0.00024657,2]
[327875695,1716573041386,-500.0,0.00024657,2]
[327875696,1716573041395,-500.0,0.00024657,2]
[327875698,1716573041404,-500.0,0.00024657,2]
[327875699,1716573041418,-500.0,0.00024657,2]
[327875700,1716573041428,-587.45,0.00024657,2]
[327875701,1716573041437,-500.0,0.00024657,2]
[327875702,1716573041447,-500.0,0.00024657,2]
[327875703,1716573041458,-500.0,0.00024657,2]
[327875704,1716573041467,-3455.13,0.00024657,2]
[327875705,1716573041477,-500.0,0.00024657,2]
[327875706,1716573041487,-500.0,0.00024657,2]
[327875707,1716573041499,-891.23,0.00024657,2]
[327875708,1716573041509,-500.0,0.00024657,2]
[327875709,1716573041519,-500.0,0.00024657,2]
[327875710,1716573041528,-500.0,0.00024657,2]
[327875711,1716573041538,-500.0,0.00024657,2]
[327875712,1716573041547,-500.0,0.00024657,2]
[327875713,1716573041557,-500.0,0.00024657,2]
[327875714,1716573041566,-8781.26,0.00024657,2]
[327875715,1716573041577,-8781.26,0.00024657,3]
[327875716,1716573041586,-8781.26,0.00024657,4]
[327875717,1716573041595,-8781.26,0.00024657,5]
[327875718,1716573041605,-8781.26,0.00024657,6]
[327875719,1716573041615,-8781.26,0.00024657,7]
[327875720,1716573041624,-8781.26,0.00024657,8]
[327875721,1716573041634,-8781.26,0.00024657,9]
[327875722,1716573041643,-8781.26,0.00024657,10]
[327875723,1716573041653,-500.0,0.00024657,2]
[327875724,1716573041663,-309.95315098,0.00024657,2]
[327875725,1716573041672,-500.0,0.00024657,2]
[327875726,1716573041682,-1415.81,0.00024657,2]
[327875727,1716573041691,-4831.14,0.00024657,2]
[327875728,1716573041701,-737.37,0.00024657,2]
[327875729,1716573041710,-500.0,0.00024657,2]
[327875730,1716573041720,-675.84,0.00024657,2]
[327875731,1716573041730,-500.0,0.00024657,2]
[327875732,1716573041741,-619.39,0.00024657,2]
[327875733,1716573041750,-696.11,0.00024657,2]
[327875734,1716573041759,-500.0,0.00024657,2]
[327875735,1716573041768,-500.0,0.00024657,2]
[327875736,1716573041778,-500.0,0.00024657,2]
[327875737,1716573041787,-500.0,0.00024657,2]
[327875738,1716573041796,-1765.24,0.00024657,2]
[327875739,1716573041806,-500.0,0.00024657,2]
[327875740,1716573041815,-500.0,0.00024657,3]
[327875741,1716573041825,-500.0,0.00024657,4]
[327875742,1716573041834,-500.0,0.00024657,2]
[327875743,1716573041843,-500.0,0.00024657,2]
[327875744,1716573041853,-558.88,0.00024657,2]
[327875745,1716573041863,-387.46,0.00024657,2]
[327875746,1716573041873,-500.0,0.00024657,2]
[327875747,1716573041882,-532.28,0.00024657,2]
[327875748,1716573041891,-777.93,0.00024657,2]
[327875749,1716573041901,-500.0,0.00024657,2]
[327875750,1716573041911,-500.0,0.00024657,2]
[327875751,1716573041921,-500.0,0.00024657,2]
[327875752,1716573041930,-617.46,0.00024657,2]
[327875753,1716573041940,-5617.02,0.00024657,2]
[327875754,1716573041949,-500.0,0.00024657,2]
[327875755,1716573041959,-1118.82,0.00024657,2]
[327875756,1716573041969,-6010.23,0.00024657,2]
[327875757,1716573041978,-500.0,0.00024657,2]
[327875758,1716573041988,-1742.08,0.00024657,2]
[327875759,1716573041997,-500.0,0.00024657,2]
[327875760,1716573042007,-500.0,0.00024657,2]
[327875761,1716573042016,-500.0,0.00024657,2]
[327875762,1716573042026,-500.0,0.00024657,2]
[327875763,1716573042035,-544.45,0.00024657,2]
[327875764,1716573042045,-500.0,0.00024657,2]
[327875765,1716573042055,-500.0,0.00024657,2]
[327875766,1716573042064,-500.0,0.00024657,2]
[327875767,1716573042074,-500.0,0.00024657,2]
[327875768,1716573042083,-500.0,0.00024657,2]
[327875769,1716573042093,-500.0,0.00024657,2]
[327875770,1716573042102,-500.0,0.00024657,3]
[327875771,1716573042111,-500.0,0.00024657,3]
[327875772,1716573042120,-500.0,0.00024657,3]
[327875773,1716573042130,-500.0,0.00024657,3]
[327875774,1716573042139,-500.0,0.00024657,3]
[327875775,1716573042148,-500.0,0.00024657,3]
[327875776,1716573042157,-500.0,0.00024657,3]
[327875777,1716573042167,-500.0,0.00024657,3]
[327875778,1716573042176,-500.0,0.00024657,2]
[327875779,1716573042186,-500.0,0.00024657,2]
[327875780,1716573042196,-500.0,0.00024657,2]
[327875781,1716573042205,-500.0,0.00024657,2]
[327875782,1716573042215,-500.0,0.00024657,2]
[327875783,1716573042224,-500.0,0.00024657,2]
[327875784,1716573042234,-500.0,0.00024657,2]
[327875785,1716573042244,-500.0,0.00024657,2]
[327875786,1716573042253,-500.0,0.00024657,2]
[327875787,1716573042263,-500.0,0.00024657,2]
[327875788,1716573042272,-548.94,0.00024657,2]
[327875789,1716573042281,-500.0,0.00024657,2]
[327875790,1716573042290,-529.82,0.00024657,2]
[327875791,1716573042300,-500.0,0.00024657,2]
[327875792,1716573042309,-151.0,0.00024819,5]
[327875793,1716573042318,-8781.26,0.0002493,11]
[327875794,1716573042328,-8781.26,0.0002493,12]
[327875795,1716573042337,-500.0,0.0002493,3]
[327875796,1716573042347,-500.0,0.0002493,3]
[327875797,1716573042356,-500.0,0.00024931,3]
[327875798,1716573042366,-244.59407564,0.00024931,3]
[327875799,1716573042375,-223.83359076,0.00024931,3]
[327875800,1716573042540,-429.55,0.00024931,3]
[327875801,1716573042550,-500.0,0.00024931,3]
[327875802,1716573042560,-619.7,0.00024931,3]
[327875803,1716573042570,-500.0,0.00024931,3]
[327875804,1716573042579,-614.37175545,0.00024931,3]
[327875805,1716573042588,-433.34029675,0.00024931,3]
[327875806,1716573042598,-500.0,0.00024931,3]
[327875807,1716573042607,-500.0,0.00024931,3]
[327875808,1716573042616,-500.0,0.00024931,3]
[327875809,1716573042626,-500.0,0.00024931,3]
[327875810,1716573042636,-500.0,0.00024931,3]
[327875811,1716573042645,-500.0,0.00024931,2]
[327875812,1716573042654,-500.0,0.00024931,3]
[327875813,1716573042663,-500.0,0.00024931,3]
[327875814,1716573042673,-500.0,0.00024931,3]
[327875815,1716573042682,-500.0,0.00024931,3]
[327875816,1716573042691,-500.0,0.00024931,3]
[327875817,1716573042700,-500.0,0.00024931,3]
[327875818,1716573042710,-500.0,0.00024931,3]
[327875819,1716573042719,-597.87,0.00024931,3]
[327875820,1716573042728,-500.0,0.00024931,3]
[327875821,1716573042739,-500.0,0.00024931,3]
[327875822,1716573042748,-754.5,0.00024931,3]
[327875823,1716573042757,-500.0,0.00024931,3]
[327875824,1716573042766,-500.0,0.00024931,3]
[327875825,1716573042775,-500.0,0.00024931,3]
[327875826,1716573042784,-714.32,0.00024931,3]
[327875827,1716573042793,-250.0,0.00024931,3]
[327875828,1716573042803,-500.0,0.00024931,3]
[327875829,1716573042812,-186.26335302,0.00024931,3]
[327875830,1716573042821,-500.0,0.00024931,3]
[327875831,1716573042830,-500.0,0.00024931,3]
[327875832,1716573042839,-500.0,0.00024931,3]